bitfinex/quotes_BTCUSD_20260103
["timestamp","ask_amount","ask_price","bid_price","bid_amount"]
[1767412326748,0.01106659,90362.0,90354.0,0.01106757]
[1767412327168,0.06639933,90363.0,90355.0,0.01106745]
[1767412327859,0.06639933,90363.0,90354.0,0.01106757]
[1767412328072,0.01106647,90363.0,90354.0,0.01106757]
[1767412328323,0.01106647,90363.0,90353.0,0.0110677]
[1767412328324,0.01106672,90361.0,90353.0,0.0110677]
[1767412328532,0.06639925,90363.0,90354.0,0.01106757]
[1767412328533,0.01106647,90363.0,90354.0,0.01106757]
[1767412328743,0.01106659,90362.0,90353.0,0.0110677]
[1767412328931,0.01106659,90362.0,90355.0,0.01106745]
[1767412329179,0.01106659,90362.0,90354.0,0.01106757]
[1767412329384,0.01106647,90363.0,90355.0,0.01106745]
[1767412329587,0.01106672,90361.0,90353.0,0.0110677]
[1767412329794,0.01106659,90362.0,90354.0,0.01106757]
[1767412330210,0.01106672,90361.0,90354.0,0.01106757]
[1767412330401,0.01106659,90362.0,90354.0,0.01106757]
[1767412331248,0.0774787,90364.0,90354.0,0.01106757]
[1767412331421,0.01106672,90361.0,90353.0,0.0110677]
[1767412331662,0.01106659,90362.0,90354.0,0.01106757]
[1767412331994,0.01106672,90361.0,90353.0,0.0110677]
[1767412332220,0.01106659,90362.0,90354.0,0.01106757]
[1767412332423,0.01106659,90362.0,90353.0,0.0110677]
[1767412332602,0.01106659,90362.0,90354.0,0.01106757]
[1767412333064,0.01106659,90362.0,90350.0,0.05533998]
[1767412333353,0.04849796,90361.0,90352.0,0.06640678]
[1767412333495,0.05956468,90361.0,90352.0,0.06640678]
[1767412333697,0.05956468,90361.0,90353.0,0.0110677]
[1767412333905,0.01106684,90360.0,90352.0,0.01106782]
[1767412334781,0.06640589,90354.0,90348.0,0.01108]
[1767412334919,0.01106794,90351.0,90348.0,0.01108]
[1767412335126,0.01106794,90351.0,90342.0,0.01108]
[1767412335324,0.06640753,90352.0,90343.0,0.01106892]
[1767412335534,0.0110677,90353.0,90345.0,0.01106868]
[1767412335734,0.01106757,90354.0,90346.0,0.01106855]
[1767412336136,0.0110677,90353.0,90344.0,0.0110688]
[1767412336335,0.0664084,90350.0,90342.0,0.01108]
[1767412336661,0.01106843,90347.0,90342.0,0.01108]
[1767412336863,0.01106831,90348.0,90342.0,0.01108]
[1767412337008,0.01106819,90349.0,90342.0,0.01108]
[1767412337207,0.01106831,90348.0,90342.0,0.01108]
[1767412337433,0.01106806,90350.0,90342.0,0.01108]
[1767412337647,0.01106819,90349.0,90342.0,0.01108]
[1767412338133,0.01106806,90350.0,90342.0,0.01108]
[1767412338364,0.01106831,90348.0,90342.0,0.01108]
[1767412338582,0.01106819,90349.0,90342.0,0.01108]
[1767412338850,0.0595659,90351.0,90342.0,0.02214904]
[1767412339075,0.01106819,90349.0,90342.0,0.01108]
[1767412339346,0.01106806,90350.0,90342.0,0.01108]
[1767412339981,0.01106819,90349.0,90342.0,0.01108]
[1767412340201,0.01106819,90349.0,90341.0,0.01106917]
[1767412340395,0.01106819,90349.0,90340.0,0.01106929]
[1767412340631,0.01106806,90350.0,90340.0,0.01106929]
[1767412340830,0.01106806,90350.0,90342.0,0.01106904]
[1767412341033,0.01106806,90350.0,90341.0,0.01106917]
[1767412341842,0.06640663,90353.0,90342.0,0.01106904]
[1767412342037,0.01106794,90351.0,90343.0,0.01106892]
[1767412342235,0.01106794,90351.0,90342.0,0.01106904]
[1767412343055,0.01106782,90352.0,90342.0,0.01106904]
[1767412343263,0.01106806,90350.0,90342.0,0.01106904]
[1767412343439,0.01106782,90352.0,90343.0,0.01106892]
[1767412343650,0.01106794,90351.0,90342.0,0.01106904]
[1767412343852,0.06640767,90351.0,90341.0,0.01106917]
[1767412344219,0.01106806,90350.0,90341.0,0.01106917]
[1767412345145,0.01106794,90351.0,90342.0,0.01106904]
[1767412345350,0.01106806,90350.0,90340.0,0.06641518]
[1767412345552,0.01106819,90349.0,90340.0,0.01106929]
[1767412345776,0.01106806,90350.0,90342.0,0.01106904]
[1767412346494,0.01106819,90349.0,90341.0,0.01106917]
[1767412346702,0.01106806,90350.0,90341.0,0.01106917]
[1767412346910,0.01106806,90350.0,90342.0,0.01106904]
[1767412347166,0.01106806,90350.0,90341.0,0.01106917]
[1767412347564,0.01106806,90350.0,90342.0,0.01106904]
[1767412347767,0.01106806,90350.0,90341.0,0.01106917]
[1767412348003,0.01106794,90351.0,90342.0,0.01106904]
[1767412348206,0.01106806,90350.0,90341.0,0.01106917]
[1767412348405,0.01106806,90350.0,90342.0,0.01106904]
[1767412348944,0.01106806,90350.0,90340.0,0.06641519]
[1767412349161,0.06640715,90352.0,90340.0,0.01106929]
[1767412349354,0.01106806,90350.0,90340.0,0.01106929]
[1767412349556,0.01106819,90349.0,90341.0,0.01106917]
[1767412349965,0.01106794,90351.0,90342.0,0.01106904]
[1767412350238,0.0553385,90353.0,90341.0,0.01106917]
[1767412350637,0.01106806,90350.0,90341.0,0.01106917]
[1767412351052,0.01106831,90348.0,90340.0,0.01106929]
[1767412351287,0.01106819,90349.0,90341.0,0.01106917]
[1767412351498,0.01106806,90350.0,90340.0,0.06641527]
[1767412351934,0.01106806,90350.0,90342.0,0.01106904]
[1767412352544,0.01106794,90351.0,90343.0,0.01106892]
[1767412352960,0.01106794,90351.0,90342.0,0.01106904]
[1767412353166,0.0110677,90353.0,90351.0,0.000999]
[1767412353400,0.06640581,90354.0,90351.0,0.000999]
[1767412353610,0.0110677,90353.0,90345.0,0.01106868]
[1767412353818,0.0110677,90353.0,90344.0,0.0110688]
[1767412354239,0.01106782,90352.0,90344.0,0.0110688]
[1767412355049,0.0110677,90353.0,90344.0,0.0110688]
[1767412355276,0.01106782,90352.0,90344.0,0.0110688]
[1767412356222,0.01106794,90351.0,90342.0,0.01106904]
[1767412356425,0.01106794,90351.0,90343.0,0.01106892]
[1767412356635,0.01106782,90352.0,90343.0,0.01106892]
[1767412357288,0.01106794,90351.0,90343.0,0.01106892]
[1767412358447,0.01106782,90352.0,90342.0,0.01106904]
[1767412358674,0.01106794,90351.0,90343.0,0.01106892]
[1767412360612,0.01106806,90350.0,90341.0,0.01106917]
[1767412360833,0.01106806,90350.0,90342.0,0.01106904]
[1767412361520,0.01106819,90349.0,90341.0,0.01106917]
[1767412361890,0.01106806,90350.0,90342.0,0.06641428]
[1767412362153,0.01106794,90351.0,90342.0,0.01106904]
[1767412362386,0.01106794,90351.0,90343.0,0.01106892]
[1767412362521,0.01106757,90354.0,90345.0,0.01106868]
[1767412362701,0.01106782,90352.0,90344.0,0.0110688]
[1767412364192,0.01106757,90354.0,90345.0,0.01106868]
[1767412364405,0.04524623,90352.0,90343.0,0.01106892]
[1767412364609,0.04524623,90352.0,90345.0,0.01102454]
[1767412364845,0.04524623,90352.0,90344.0,0.0110688]
[1767412365037,0.04524623,90352.0,90343.0,0.01106892]
[1767412365038,0.05631405,90352.0,90343.0,0.01106892]
[1767412365273,0.05631405,90352.0,90344.0,0.0110688]
[1767412365473,0.05631405,90352.0,90343.0,0.01106892]
[1767412365680,0.01106782,90352.0,90344.0,0.0110688]
[1767412365984,0.01106782,90352.0,90344.0,0.05965523]
[1767412366290,0.01106782,90352.0,90344.0,0.04858643]
[1767412366491,0.01106782,90352.0,90344.0,0.05965523]
[1767412366901,0.01106782,90352.0,90344.0,0.04858643]
[1767412367319,0.01106782,90352.0,90344.0,0.05965523]
[1767412368112,0.01106794,90351.0,90344.0,0.04858643]
[1767412369100,0.01106806,90350.0,90344.0,0.04858643]
[1767412369339,0.01106794,90351.0,90344.0,0.04858643]
[1767412369543,0.01106806,90350.0,90344.0,0.04858643]
[1767412371011,0.01106819,90349.0,90344.0,0.04858643]
[1767412371541,0.01106806,90350.0,90344.0,0.04858643]
[1767412371738,0.01106819,90349.0,90344.0,0.04858643]
[1767412372433,0.01106806,90350.0,90344.0,0.04858643]
[1767412372559,0.01106794,90351.0,90344.0,0.04858643]
[1767412373326,0.06640529,90355.0,90344.0,0.10393014]
[1767412373622,0.01106757,90354.0,90344.0,0.11499887]
[1767412374145,0.01106757,90354.0,90345.0,0.01106868]
[1767412374772,0.01106892,90343.0,90333.0,0.01107015]
[1767412374991,0.01106929,90340.0,90337.0,0.04933613]
[1767412375577,0.01106917,90341.0,90337.0,0.04933613]
[1767412375756,0.01106892,90343.0,90337.0,0.04933613]
[1767412375941,0.01106904,90342.0,90337.0,0.04933613]
[1767412376153,0.01106892,90343.0,90337.0,0.04933613]
[1767412376830,0.01106904,90342.0,90337.0,0.04933613]
[1767412377246,0.01106892,90343.0,90337.0,0.04933613]
[1767412377473,0.01106904,90342.0,90337.0,0.04933613]
[1767412377670,0.01106892,90343.0,90337.0,0.04933613]
[1767412377872,0.01106868,90345.0,90337.0,0.06040579]
[1767412378079,0.01106855,90346.0,90339.0,0.04933613]
[1767412378226,0.01106855,90346.0,90339.0,0.06040554]
[1767412378426,0.06641114,90347.0,90339.0,0.06040554]
[1767412378645,0.01106855,90346.0,90339.0,0.04933613]
[1767412379043,0.01106868,90345.0,90339.0,0.04933613]
[1767412379242,0.01106843,90347.0,90339.0,0.04933613]
[1767412379648,0.01106855,90346.0,90339.0,0.04933613]
[1767412380253,0.01106868,90345.0,90339.0,0.04933613]
[1767412380667,0.01106855,90346.0,90339.0,0.04933613]
[1767412380868,0.01106868,90345.0,90339.0,0.04933613]
[1767412381767,0.0110688,90344.0,90339.0,0.04933613]
[1767412381972,0.01106868,90345.0,90339.0,0.04933613]
[1767412382373,0.01106855,90346.0,90339.0,0.04933613]
[1767412383060,0.01106868,90345.0,90339.0,0.04933613]
[1767412383458,0.0110688,90344.0,90339.0,0.04933613]
[1767412383888,0.01106843,90347.0,90339.0,0.04933613]
[1767412384472,0.01106868,90345.0,90339.0,0.04933613]
[1767412384877,0.01106831,90348.0,90339.0,0.04933613]
[1767412385339,0.01106868,90345.0,90339.0,0.04933613]
[1767412385580,0.01106855,90346.0,90339.0,0.04933613]
[1767412385764,0.01106868,90345.0,90339.0,0.04933613]
[1767412385965,0.01106843,90347.0,90339.0,0.04933613]
[1767412386177,0.01106843,90347.0,90341.0,0.04771655]
[1767412386407,0.01106855,90346.0,90341.0,0.04771655]
[1767412386576,0.01106843,90347.0,90341.0,0.04771655]
[1767412386782,0.01106868,90345.0,90341.0,0.04771655]
[1767412386982,0.06641174,90346.0,90341.0,0.04771655]
[1767412387165,0.01106868,90345.0,90341.0,0.04771655]
[1767412387971,0.01106806,90350.0,90346.0,0.04771655]
[1767412388182,0.01106782,90352.0,90350.0,0.04771655]
[1767412388620,0.02214745,90355.0,90346.0,0.01106855]
[1767412389031,0.02214745,90355.0,90345.0,0.05878523]
[1767412389032,0.01106757,90354.0,90345.0,0.05878523]
[1767412389236,0.0110677,90353.0,90345.0,0.05878523]
[1767412389518,0.02214745,90355.0,90345.0,0.05878523]
[1767412390071,0.02214745,90355.0,90346.0,0.01106855]
[1767412390477,0.02214745,90355.0,90347.0,0.04771655]
[1767412390614,0.01106757,90354.0,90347.0,0.04771655]
[1767412391236,0.0110677,90353.0,90347.0,0.04771655]
[1767412391498,0.01106782,90352.0,90347.0,0.04771655]
[1767412391872,0.0110677,90353.0,90347.0,0.04771655]
[1767412392073,0.01106757,90354.0,90347.0,0.04771655]
[1767412393462,0.0110677,90353.0,90347.0,0.04771655]
[1767412393698,0.01106782,90352.0,90347.0,0.04771655]
[1767412393901,0.01106757,90354.0,90347.0,0.04771655]
[1767412394708,0.01106757,90354.0,90347.0,0.05878498]
[1767412394952,0.0110677,90353.0,90347.0,0.04771655]
[1767412395161,0.01106757,90354.0,90347.0,0.04771655]
[1767412395363,0.0110677,90353.0,90347.0,0.04771655]
[1767412395676,0.01106757,90354.0,90347.0,0.04771655]
[1767412396683,0.01106757,90354.0,90347.0,0.05878498]
[1767412396993,0.01108,90355.0,90347.0,0.05878498]
[1767412397129,0.01108,90355.0,90348.0,0.01106831]
[1767412397330,0.01108,90355.0,90347.0,0.11412704]
[1767412397331,0.02214745,90355.0,90347.0,0.05878498]
[1767412398768,0.02214745,90355.0,90349.0,0.01106819]
[1767412398769,0.01108,90355.0,90349.0,0.01106819]
[1767412399172,0.01108,90355.0,90348.0,0.01106831]
[1767412399376,0.01108,90355.0,90349.0,0.01106819]
[1767412399576,0.01108,90355.0,90348.0,0.01106831]
[1767412399757,0.01108,90355.0,90349.0,0.01106819]
[1767412400619,0.01108,90355.0,90348.0,0.01106831]
[1767412401002,0.02214745,90355.0,90347.0,0.05878498]
[1767412401426,0.01108,90355.0,90348.0,0.01106831]
[1767412401626,0.01108,90355.0,90349.0,0.01106819]
[1767412401831,0.01108,90355.0,90350.0,0.01106806]
[1767412402187,0.02214745,90355.0,90348.0,0.01106831]
[1767412402385,0.01108,90355.0,90349.0,0.01102406]
[1767412403254,0.01108,90355.0,90348.0,0.01106831]
[1767412403597,0.01108,90355.0,90349.0,0.01106819]
[1767412404438,0.01108,90355.0,90348.0,0.06640951]
[1767412404439,0.01108,90355.0,90348.0,0.01106831]
[1767412404617,0.01108,90355.0,90349.0,0.01106819]
[1767412404816,0.01108,90355.0,90348.0,0.01106831]
[1767412405019,0.01108,90355.0,90349.0,0.01106819]
[1767412406115,0.01108,90355.0,90347.0,0.05878498]
[1767412406337,0.01108,90355.0,90348.0,0.01106831]
[1767412406547,0.01106757,90354.0,90347.0,0.04771655]
[1767412406739,0.02214745,90355.0,90347.0,0.05878498]
[1767412406952,0.02214745,90355.0,90348.0,0.01106831]
[1767412407686,0.01108,90355.0,90348.0,0.01106831]
[1767412408056,0.01108,90358.0,90355.0,0.04871555]
[1767412408305,0.02214708,90358.0,90355.0,0.04771655]
[1767412408816,0.01108,90358.0,90355.0,0.04771655]
[1767412409044,0.02214708,90358.0,90355.0,0.04771655]
[1767412409249,0.07748306,90358.0,90355.0,0.03671948]
[1767412409380,0.06640452,90356.0,90347.0,0.04870291]
[1767412409606,0.01106757,90354.0,90347.0,0.04870291]
[1767412409791,0.06640726,90352.0,90347.0,0.04870291]
[1767412410128,0.01106782,90352.0,90347.0,0.04870291]
[1767412410328,0.01106806,90350.0,90347.0,0.04870291]
[1767412410486,0.01106806,90350.0,90343.0,0.01108]
[1767412410694,0.01106819,90349.0,90343.0,0.01108]
[1767412410887,0.01106855,90346.0,90343.0,0.01108]
[1767412411111,0.05534383,90345.0,90343.0,0.01108]
[1767412413564,0.0110688,90344.0,90338.0,0.01108]
[1767412413764,0.01106868,90345.0,90338.0,0.01108]
[1767412413971,0.01106868,90345.0,90339.0,0.04641936]
[1767412414169,0.01106904,90342.0,90338.0,0.01108]
[1767412414500,0.01106892,90343.0,90338.0,0.01108]
[1767412414501,0.01106917,90341.0,90338.0,0.05749936]
[1767412414708,0.01007017,90341.0,90338.0,0.05749936]
[1767412415674,0.01106904,90342.0,90338.0,0.05749936]
[1767412415874,0.01102586,90343.0,90338.0,0.05749936]
[1767412416158,0.0109846,90343.0,90338.0,0.05749936]
[1767412417340,0.05534445,90344.0,90338.0,0.05749936]
[1767412417341,0.0110688,90344.0,90338.0,0.05749936]
[1767412417521,0.01106892,90343.0,90338.0,0.05749936]
[1767412417893,0.0110688,90344.0,90338.0,0.05749936]
[1767412418102,0.01106892,90343.0,90338.0,0.05749936]
[1767412418256,0.0110688,90344.0,90338.0,0.05749936]
[1767412418935,0.01106892,90343.0,90338.0,0.05749936]
[1767412419137,0.0110688,90344.0,90338.0,0.05749936]
[1767412419543,0.01106868,90345.0,90338.0,0.05749936]
[1767412419720,0.0110688,90344.0,90338.0,0.05749936]
[1767412420122,0.01106868,90345.0,90338.0,0.06856889]
[1767412420443,0.01106868,90345.0,90338.0,0.05749936]
[1767412421120,0.01106855,90346.0,90338.0,0.06856889]
[1767412421529,0.01106855,90346.0,90339.0,0.01106941]
[1767412421905,0.01106855,90346.0,90338.0,0.05749936]
[1767412422132,0.01106855,90346.0,90338.0,0.06856889]
[1767412422794,0.01106868,90345.0,90338.0,0.05749936]
[1767412423134,0.01106843,90347.0,90338.0,0.06856889]
[1767412423339,0.01106868,90345.0,90338.0,0.05749936]
[1767412423541,0.01106868,90345.0,90338.0,0.06856889]
[1767412423788,0.01106868,90345.0,90338.0,0.05749936]
[1767412424176,0.01106868,90345.0,90338.0,0.06856889]
[1767412424383,0.01106868,90345.0,90338.0,0.05749936]
[1767412425125,0.01106855,90346.0,90338.0,0.05749936]
[1767412425289,0.01106868,90345.0,90338.0,0.05749936]
[1767412425495,0.01106843,90347.0,90338.0,0.06856889]
[1767412425715,0.01106843,90347.0,90339.0,0.01106941]
[1767412426542,0.01106843,90347.0,90338.0,0.06856889]
[1767412426675,0.01106855,90346.0,90339.0,0.01106941]
[1767412428184,0.01106843,90347.0,90339.0,0.01106941]
[1767412428382,0.01106868,90345.0,90338.0,0.06856889]
[1767412428581,0.01106843,90347.0,90339.0,0.01106941]
[1767412429042,0.01106855,90346.0,90338.0,0.06856889]
[1767412429232,0.01106855,90346.0,90339.0,0.01106941]
[1767412429438,0.01106843,90347.0,90339.0,0.01106941]
[1767412429852,0.01106855,90346.0,90339.0,0.01106941]
[1767412430008,0.01106843,90347.0,90339.0,0.01106941]
[1767412430965,0.01106843,90347.0,90340.0,0.01106929]
[1767412431780,0.01106843,90347.0,90339.0,0.01106941]
[1767412433555,0.01106843,90347.0,90340.0,0.01106929]
[1767412435397,0.01106855,90346.0,90338.0,0.06856889]
[1767412435541,0.01106855,90346.0,90339.0,0.01106941]
[1767412436575,0.01106855,90346.0,90338.0,0.06856889]
[1767412436907,0.01106855,90346.0,90339.0,0.01106941]
[1767412440535,0.01106855,90346.0,90338.0,0.06856889]
[1767412440880,0.06213797,90348.0,90338.0,0.06856889]
[1767412441233,0.01106855,90346.0,90338.0,0.06856889]
[1767412441435,0.01106855,90346.0,90339.0,0.01106941]
[1767412441632,0.01106855,90346.0,90338.0,0.06856889]
[1767412441835,0.01106843,90347.0,90339.0,0.01106941]
[1767412442058,0.01106831,90348.0,90339.0,0.05898267]
[1767412442646,0.01106831,90348.0,90341.0,0.01106917]
[1767412443066,0.01106831,90348.0,90340.0,0.01106929]
[1767412443519,0.01106819,90349.0,90341.0,0.01106917]
[1767412443724,0.01106831,90348.0,90340.0,0.01106929]
[1767412443963,0.06047943,90349.0,90340.0,0.01106929]
[1767412444829,0.01106831,90348.0,90340.0,0.01106929]
[1767412445365,0.01106855,90346.0,90339.0,0.05898267]
[1767412445514,0.01106831,90348.0,90340.0,0.01106929]
[1767412445834,0.01106831,90348.0,90341.0,0.01106917]
[1767412446041,0.00513803,90349.0,90341.0,0.01106917]
[1767412447063,0.01106819,90349.0,90342.0,0.01106904]
[1767412447183,0.01106819,90349.0,90341.0,0.01106917]
[1767412447535,0.06641982,90351.0,90341.0,0.01106917]
[1767412447680,0.01106806,90350.0,90341.0,0.01106917]
[1767412447885,0.01106819,90349.0,90341.0,0.01106917]
[1767412448085,0.01106831,90348.0,90341.0,0.01106917]
[1767412448829,0.01106819,90349.0,90341.0,0.01106917]
[1767412449007,0.01106819,90349.0,90342.0,0.01106904]
[1767412449207,0.01106819,90349.0,90341.0,0.01106917]
[1767412449618,0.01106819,90349.0,90342.0,0.01106904]
[1767412449798,0.01106819,90349.0,90341.0,0.01106917]
[1767412450016,0.01106819,90349.0,90342.0,0.01106904]
[1767412450242,0.01106819,90349.0,90341.0,0.01106917]
[1767412450443,0.01106819,90349.0,90342.0,0.01106904]
[1767412450648,0.01106819,90349.0,90341.0,0.01106917]
[1767412451020,0.01106806,90350.0,90342.0,0.01106904]
[1767412451247,0.01108,90351.0,90342.0,0.01106904]
[1767412451444,0.01106806,90350.0,90343.0,0.01106892]
[1767412451777,0.01106806,90350.0,90342.0,0.01106904]
[1767412452002,0.01106819,90349.0,90342.0,0.01106904]
[1767412452386,0.01106831,90348.0,90341.0,0.01106917]
[1767412452708,0.01106819,90349.0,90341.0,0.01106917]
[1767412454087,0.01106831,90348.0,90341.0,0.01106917]
[1767412454291,0.01106819,90349.0,90341.0,0.01106917]
[1767412454694,0.01106806,90350.0,90341.0,0.01106917]
[1767412455008,0.01106831,90348.0,90341.0,0.01106917]
[1767412455195,0.01106819,90349.0,90341.0,0.01106917]
[1767412455715,0.01106819,90349.0,90342.0,0.01106904]
[1767412455925,0.01106806,90350.0,90342.0,0.01106904]
[1767412456108,0.01106819,90349.0,90341.0,0.01106917]
[1767412456511,0.01106831,90348.0,90341.0,0.01106917]
[1767412456753,0.01106843,90347.0,90339.0,0.04791326]
[1767412456954,0.01106843,90347.0,90339.0,0.05898267]
[1767412457159,0.01106843,90347.0,90339.0,0.04791326]
[1767412457160,0.01106868,90345.0,90339.0,0.04791326]
[1767412457362,0.01102644,90344.0,90338.0,0.01108]
[1767412457662,0.01102644,90344.0,90338.0,0.05899326]
[1767412457663,0.01106892,90343.0,90338.0,0.05899326]
[1767412457847,0.01102644,90344.0,90338.0,0.05899326]
[1767412458035,0.01106892,90343.0,90338.0,0.05899326]
[1767412458240,0.01102644,90344.0,90338.0,0.05899326]
[1767412459020,0.01106868,90345.0,90338.0,0.07006279]
[1767412459240,0.05534334,90346.0,90339.0,0.01106941]
[1767412459241,0.01106855,90346.0,90339.0,0.01106941]
[1767412459575,0.01106855,90346.0,90338.0,0.07006279]
[1767412459789,0.01106855,90346.0,90339.0,0.01106941]
[1767412459985,0.01106868,90345.0,90338.0,0.07006279]
[1767412460139,0.01106868,90345.0,90338.0,0.05899326]
[1767412460350,0.05534212,90348.0,90338.0,0.05899326]
[1767412460351,0.01106831,90348.0,90339.0,0.05534708]
[1767412460559,0.01106831,90348.0,90339.0,0.01106941]
[1767412460560,0.01106843,90347.0,90339.0,0.01106941]
[1767412460725,0.01106843,90347.0,90340.0,0.01106929]
[1767412460927,0.06641024,90348.0,90340.0,0.01106929]
[1767412461325,0.01106843,90347.0,90340.0,0.01106929]
[1767412461521,0.01106819,90349.0,90341.0,0.01106917]
[1767412462283,0.01106819,90349.0,90342.0,0.01106904]
[1767412462506,0.01106819,90349.0,90341.0,0.01106917]
[1767412463582,0.01106831,90348.0,90341.0,0.01106917]
[1767412463793,0.01106843,90347.0,90339.0,0.05898267]
[1767412464096,0.01106831,90348.0,90341.0,0.01106917]
[1767412464592,0.01106831,90348.0,90340.0,0.01106929]
[1767412464774,0.01106831,90348.0,90341.0,0.01106917]
[1767412464971,0.01106831,90348.0,90339.0,0.04791326]
[1767412465153,0.000999,90341.0,90339.0,0.04791326]
[1767412465353,0.00095723,90341.0,90339.0,0.04791326]
[1767412465577,0.01106855,90346.0,90339.0,0.04791326]
[1767412466346,0.01106843,90347.0,90339.0,0.05898267]
[1767412467685,0.01106855,90346.0,90339.0,0.04791326]
[1767412467914,0.01106855,90346.0,90339.0,0.05898267]
[1767412468310,0.01106868,90345.0,90339.0,0.04791326]
[1767412469974,0.0110688,90344.0,90339.0,0.04791326]
[1767412470329,0.01106868,90345.0,90339.0,0.04791326]
[1767412470529,0.0110688,90344.0,90339.0,0.04791326]
[1767412470928,0.0110688,90344.0,90339.0,0.04695626]
[1767412470929,0.01106892,90343.0,90339.0,0.04695626]
[1767412471328,0.0110688,90344.0,90339.0,0.04695626]
[1767412471848,0.01106868,90345.0,90339.0,0.04695626]
[1767412472431,0.06641172,90346.0,90339.0,0.04695626]
[1767412472669,0.0110688,90344.0,90338.0,0.01108]
[1767412473252,0.0110688,90344.0,90334.0,0.04613184]
[1767412473461,0.0110688,90344.0,90318.0,0.1459]
[1767412473462,0.01107002,90334.0,90329.0,0.01108]
[1767412473680,0.06637731,90334.0,90329.0,0.01108]
[1767412473882,0.01106966,90337.0,90330.0,0.01107051]
[1767412474060,0.01106953,90338.0,90334.0,0.000999]
[1767412474281,0.01106953,90338.0,90331.0,0.01107039]
[1767412474466,0.01102647,90338.0,90331.0,0.01107039]
[1767412475744,0.06641597,90340.0,90338.0,0.000999]
[1767412476438,0.01106953,90338.0,90331.0,0.01107039]
[1767412476921,0.01106941,90339.0,90331.0,0.01107039]
[1767412478113,0.01106941,90339.0,90332.0,0.01107027]
[1767412479435,0.01106929,90340.0,90333.0,0.01107015]
[1767412479792,0.01106941,90339.0,90332.0,0.01107027]
[1767412480036,0.01106929,90340.0,90333.0,0.01107015]
[1767412480611,0.01106941,90339.0,90332.0,0.01107027]
[1767412481434,0.06641677,90339.0,90330.0,0.01107051]
[1767412481648,0.01106953,90338.0,90330.0,0.01107051]
[1767412481861,0.01106966,90337.0,90330.0,0.01107051]
[1767412482059,0.0110699,90335.0,90329.0,0.05721184]
[1767412482312,0.01107002,90334.0,90329.0,0.01108]
[1767412482724,0.01107015,90333.0,90329.0,0.01108]
[1767412483297,0.01107027,90332.0,90329.0,0.01108]
[1767412483498,0.01107015,90333.0,90329.0,0.01108]
[1767412483902,0.01107002,90334.0,90327.0,0.01122248]
[1767412484344,0.01107015,90333.0,90327.0,0.0001516]
[1767412484482,0.01107002,90334.0,90327.0,0.01122248]
[1767412485045,0.01107002,90334.0,90327.0,0.0001516]
[1767412485404,0.01107002,90334.0,90327.0,0.01122248]
[1767412485609,0.01107015,90333.0,90327.0,0.0001516]
[1767412485805,0.01107002,90334.0,90327.0,0.01122248]
[1767412486018,0.0110699,90335.0,90328.0,0.01107076]
[1767412486571,0.01107002,90334.0,90327.0,0.01122248]
[1767412486714,0.0110699,90335.0,90328.0,0.01107076]
[1767412486923,0.0110699,90335.0,90327.0,0.01122248]
[1767412487123,0.0110699,90335.0,90328.0,0.01107076]
[1767412487421,0.0110699,90335.0,90327.0,0.01122248]
[1767412488424,0.01107002,90334.0,90327.0,0.01122248]
[1767412489911,0.01107051,90330.0,90327.0,0.0001516]
[1767412490050,0.01102725,90332.0,90330.0,0.000999]
[1767412490485,0.01102725,90332.0,90327.0,0.0001516]
[1767412490869,0.01098453,90332.0,90327.0,0.0001516]
[1767412491071,0.00505644,90332.0,90327.0,0.0001516]
[1767412491450,0.01107039,90331.0,90327.0,0.0001516]
[1767412491968,0.01107051,90330.0,90327.0,0.0001516]
[1767412492599,0.01107039,90331.0,90327.0,0.0001516]
[1767412493182,0.01107051,90330.0,90327.0,0.0001516]
[1767412493517,7.561e-05,90330.0,90327.0,0.0001516]
[1767412494313,0.01114612,90330.0,90327.0,0.0001516]
[1767412495283,7.561e-05,90330.0,90327.0,0.0001516]
[1767412495534,0.00505644,90332.0,90330.0,0.00092339]
[1767412495697,0.00505644,90332.0,90330.0,0.00010806]
[1767412495895,0.00505644,90332.0,90327.0,0.0001516]
[1767412496096,0.00505644,90332.0,90327.0,0.04628344]
[1767412496306,0.00505644,90332.0,90327.0,0.0001516]
[1767412498168,0.01107039,90331.0,90327.0,0.04620744]
[1767412498533,0.01107051,90330.0,90327.0,0.04620744]
[1767412498731,0.01107051,90330.0,90327.0,7.56e-05]
[1767412498958,0.00505644,90332.0,90328.0,0.04613184]
[1767412499504,0.01107039,90331.0,90327.0,7.56e-05]
[1767412500045,0.00505644,90332.0,90327.0,7.56e-05]
[1767412500248,0.01107039,90331.0,90327.0,7.56e-05]
[1767412501089,0.01107051,90330.0,90327.0,0.04964745]
[1767412501395,0.01107039,90331.0,90327.0,7.56e-05]
[1767412501794,0.01107051,90330.0,90327.0,7.56e-05]
[1767412502025,0.06040822,90332.0,90327.0,7.56e-05]
[1767412502026,0.01107027,90332.0,90327.0,7.56e-05]
[1767412502350,0.01107051,90330.0,90327.0,7.56e-05]
[1767412502586,0.01107039,90331.0,90327.0,7.56e-05]
[1767412502789,0.01107027,90332.0,90327.0,7.56e-05]
[1767412503654,0.01107015,90333.0,90327.0,7.56e-05]
[1767412504543,0.01107027,90332.0,90327.0,7.56e-05]
[1767412505082,0.01107015,90333.0,90327.0,7.56e-05]
[1767412506334,0.01107027,90332.0,90327.0,7.56e-05]
[1767412506694,0.01107015,90333.0,90327.0,7.56e-05]
[1767412506909,0.01107027,90332.0,90327.0,7.56e-05]
[1767412507112,0.01107015,90333.0,90327.0,7.56e-05]
[1767412507697,0.01107051,90330.0,90327.0,7.56e-05]
[1767412510148,0.01107015,90333.0,90327.0,7.56e-05]
[1767412510458,0.01107039,90331.0,90327.0,7.56e-05]
[1767412510823,0.01107027,90332.0,90327.0,7.56e-05]
[1767412512797,0.01107015,90333.0,90327.0,7.56e-05]
[1767412513952,0.01107015,90333.0,90327.0,0.01114648]
[1767412514162,0.01107015,90333.0,90324.0,0.0664271]
[1767412514163,0.03398446,90332.0,90324.0,0.06573125]
[1767412514381,0.01107015,90333.0,90325.0,0.01107113]
[1767412514594,0.0110148,90333.0,90332.0,0.000999]
[1767412514803,0.0110148,90333.0,90326.0,0.011071]
[1767412515020,0.01107027,90332.0,90325.0,0.01107113]
[1767412515654,0.01107027,90332.0,90326.0,0.011071]
[1767412515861,0.01107027,90332.0,90325.0,0.01107113]
[1767412516065,0.0110148,90333.0,90326.0,0.011071]
[1767412516285,0.01107027,90332.0,90325.0,0.01107113]
[1767412516689,0.0110148,90333.0,90325.0,0.01107113]
[1767412516893,0.0110148,90333.0,90326.0,0.011071]
[1767412517308,0.01107027,90332.0,90325.0,0.01107113]
[1767412518050,0.01107027,90332.0,90326.0,0.011071]
[1767412518307,0.01107027,90332.0,90325.0,0.01107113]
[1767412520309,0.01107039,90331.0,90325.0,0.01107113]
[1767412520766,0.01107039,90331.0,90324.0,0.0606431]
[1767412520971,0.01107027,90332.0,90325.0,0.01107113]
[1767412521451,0.01107039,90331.0,90324.0,0.0606431]
[1767412521992,0.01107027,90332.0,90325.0,0.01107113]
[1767412523342,0.01107039,90331.0,90324.0,0.0606431]
[1767412523495,0.01107027,90332.0,90324.0,0.0606431]
[1767412523901,0.01107027,90332.0,90324.0,0.04957185]
[1767412524108,0.01107088,90327.0,90318.0,0.06064384]